fUST/lending_fUST_20250704
["ID","MTS","AMOUNT","RATE_DAILY","PERIOD"]
[369557479,1751621441814,-151.0,0.00016438,2]
[369557480,1751621441823,-151.0,0.00016438,2]
[369557481,1751621441832,-151.0,0.00016438,2]
[369557482,1751621441841,-151.0,0.00016438,2]
[369557483,1751621441850,-460.0,0.00016438,2]
[369557484,1751621441860,-151.0,0.00016438,2]
[369557485,1751621441869,-151.0,0.00016438,2]
[369557486,1751621441878,-151.0,0.00016438,2]
[369557487,1751621441887,-460.0,0.00016438,2]
[369557488,1751621441897,-151.0,0.00016438,2]
[369557489,1751621441906,-151.0,0.00016438,2]
[369557490,1751621441915,-294.675178,0.00016438,2]
[369557491,1751621441924,-460.0,0.00016438,2]
[369557492,1751621441933,-151.0,0.00016438,2]
[369557493,1751621441943,-151.0,0.00016438,2]
[369557494,1751621441952,-460.0,0.00016438,2]
[369557495,1751621441961,-151.0,0.00016438,2]
[369557496,1751621441970,-151.0,0.00016438,2]
[369557497,1751621441980,-151.0,0.00016438,2]
[369557498,1751621441989,-151.0,0.00016438,2]
[369557499,1751621441998,-151.0,0.00016438,2]
[369557500,1751621442008,-151.0,0.00016438,2]
[369557501,1751621442017,-151.0,0.00016438,2]
[369557502,1751621442026,-461.38419829,0.00016438,2]
[369557503,1751621442041,-460.0,0.00016438,2]
[369557504,1751621442049,-152.349662,0.00016438,2]
[369557505,1751621442059,-348.98118321,0.00016438,2]
[369557506,1751621442068,-492.8287966,0.00016438,2]
[369557507,1751621442078,-602.07513463,0.00016438,2]
[369557508,1751621442088,-461.76526329,0.00016438,2]
[369557509,1751621442097,-460.0,0.00016438,2]
[369557510,1751621442106,-460.0,0.00016438,2]
[369557511,1751621442117,-460.0,0.00016438,2]
[369557512,1751621442127,-460.0,0.00016438,2]
[369557513,1751621442136,-460.0,0.00016438,2]
[369557514,1751621442145,-687.2,0.00016438,2]
[369557515,1751621442154,-460.0,0.00016438,2]
[369557516,1751621442163,-460.0,0.00016438,2]
[369557517,1751621442172,-460.0,0.00016438,2]
[369557519,1751621442182,-460.0,0.00016438,2]
[369557521,1751621442191,-524.78353316,0.00016438,2]
[369557522,1751621442200,-460.0,0.00016438,2]
[369557523,1751621442209,-460.0,0.00016438,2]
[369557524,1751621442219,-660.75,0.00016438,2]
[369557525,1751621442228,-460.0,0.00016438,2]
[369557526,1751621442238,-460.0,0.00016438,2]
[369557528,1751621442247,-460.0,0.00016438,2]
[369557529,1751621442257,-460.0,0.00016438,2]
[369557530,1751621442267,-460.0,0.00016438,2]
[369557531,1751621442276,-3044.39,0.00016438,2]
[369557532,1751621442285,-460.0,0.00016438,2]
[369557533,1751621442294,-460.0,0.00016438,2]
[369557534,1751621442303,-460.0,0.00016438,2]
[369557535,1751621442313,-460.0,0.00016438,2]
[369557536,1751621442323,-1046.92,0.00016438,2]
[369557537,1751621442332,-460.0,0.00016438,2]
[369557538,1751621442341,-462.36673577,0.00016438,2]
[369557539,1751621442351,-460.0,0.00016438,2]
[369557540,1751621442360,-460.0,0.00016438,2]
[369557541,1751621442369,-460.0,0.00016438,2]
[369557542,1751621442379,-460.0,0.00016438,2]
[369557543,1751621442388,-1886.37,0.00016438,2]
[369557544,1751621442396,-460.0,0.00016438,2]
[369557545,1751621442406,-622.11,0.00016438,2]
[369557547,1751621442415,-825.8,0.00016438,2]
[369557548,1751621442424,-460.0,0.00016438,2]
[369557549,1751621442434,-248.7687539,0.00016438,2]
[369557550,1751621442443,-460.0,0.00016438,2]
[369557551,1751621442453,-460.0,0.00016438,2]
[369557552,1751621442463,-460.0,0.00016438,2]
[369557553,1751621442472,-500.0,0.00016438,2]
[369557554,1751621442481,-460.0,0.00016438,2]
[369557555,1751621442490,-460.0,0.00016438,2]
[369557556,1751621442499,-1877.2,0.00016438,2]
[369557557,1751621442509,-460.0,0.00016438,2]
[369557558,1751621442518,-239.03280257,0.00016438,2]
[369557559,1751621442528,-460.0,0.00016438,2]
[369557561,1751621442537,-460.0,0.00016438,2]
[369557562,1751621442547,-460.0,0.00016438,2]
[369557563,1751621442556,-460.0,0.00016438,2]
[369557564,1751621442566,-924.28,0.00016438,2]
[369557565,1751621442575,-460.0,0.00016438,2]
[369557566,1751621442584,-460.0,0.00016438,2]
[369557567,1751621442595,-460.0,0.00016438,2]
[369557568,1751621442604,-583.5,0.00016438,2]
[369557569,1751621442614,-460.0,0.00016438,2]
[369557570,1751621442623,-460.0,0.00016438,2]
[369557571,1751621442632,-202.4919071,0.00016438,2]
[369557572,1751621442641,-460.0,0.00016438,2]
[369557573,1751621442650,-460.0,0.00016438,2]
[369557574,1751621442659,-460.0,0.00016438,2]
[369557575,1751621442668,-691.35,0.00016438,2]
[369557576,1751621442678,-995.43,0.00016438,2]
[369557577,1751621442687,-1592.64,0.00016438,2]
[369557578,1751621442696,-460.0,0.00016438,2]
[369557579,1751621442705,-2739.36,0.00016438,2]
[369557580,1751621442714,-460.0,0.00016438,2]
[369557581,1751621442723,-460.0,0.00016438,2]
[369557582,1751621442733,-460.0,0.00016438,2]
[369557583,1751621442743,-460.0,0.00016438,2]
[369557584,1751621442752,-1132.92,0.00016438,2]
[369557585,1751621442761,-460.0,0.00016438,2]
[369557586,1751621442771,-460.0,0.00016438,2]
[369557587,1751621442780,-460.0,0.00016438,2]
[369557588,1751621442790,-460.0,0.00016438,2]
[369557589,1751621442799,-782.29,0.00016438,2]
[369557590,1751621442809,-460.0,0.00016438,2]
[369557591,1751621442818,-151.0,0.00016438,2]
[369557592,1751621442827,-1239.34,0.00016438,2]
[369557593,1751621442837,-4808.88,0.00016438,2]
[369557594,1751621442846,-151.0,0.00016438,2]
[369557595,1751621442855,-460.0,0.00016438,2]
[369557596,1751621442864,-151.0,0.00016438,2]
[369557597,1751621442874,-208.58523093,0.00016438,2]
[369557598,1751621442883,-151.0,0.00016438,2]
[369557599,1751621442892,-460.0,0.00016438,2]
[369557600,1751621442902,-198.12133,0.00016438,2]
[369557601,1751621442911,-460.0,0.00016438,2]
[369557602,1751621442920,-411.23639041,0.00016438,2]
[369557603,1751621442930,-460.0,0.00016438,2]
[369557604,1751621442940,-750.39,0.00016438,2]
[369557605,1751621442949,-460.0,0.00016438,2]
[369557606,1751621442959,-460.0,0.00016438,2]
[369557607,1751621442969,-508.08191124,0.00016438,2]
[369557608,1751621442980,-151.0,0.00016438,2]
[369557609,1751621442989,-462.07946982,0.00016438,2]
[369557610,1751621442998,-151.0,0.00016438,2]
[369557611,1751621443007,-151.0,0.00016438,2]
[369557612,1751621443017,-460.0,0.00016438,2]
[369557613,1751621443027,-489.85744446,0.00016438,2]
[369557614,1751621443039,-151.0,0.00016438,2]
[369557615,1751621443052,-151.0,0.00016438,2]
[369557616,1751621443063,-151.0,0.00016438,2]
[369557617,1751621443073,-281.908706,0.00016438,2]
[369557618,1751621443084,-1354.36,0.00016438,2]
[369557619,1751621443093,-460.0,0.00016438,2]
[369557620,1751621443103,-460.0,0.00016438,2]
[369557621,1751621443113,-588.83843698,0.00016438,2]
[369557623,1751621443123,-460.0,0.00016438,2]
[369557624,1751621443134,-460.0,0.00016438,2]
[369557625,1751621443143,-460.0,0.00016438,2]
[369557626,1751621443153,-740.77,0.00016438,2]
[369557627,1751621443162,-1129.67,0.00016438,2]
[369557628,1751621443172,-461.22633624,0.00016438,2]
[369557629,1751621443181,-460.0,0.00016438,2]
[369557630,1751621443191,-500.0,0.00016438,2]
[369557631,1751621443310,-460.0,0.00016438,2]
[369557632,1751621443321,-1203.07,0.00016438,2]
[369557633,1751621443330,-460.0,0.00016438,2]
[369557634,1751621443339,-151.0,0.00016438,2]
[369557635,1751621443349,-151.0,0.00016438,2]
[369557636,1751621443359,-151.0,0.00016438,2]
[369557637,1751621443368,-151.0,0.00016438,2]
[369557638,1751621443378,-151.0,0.00016438,2]
[369557639,1751621443387,-460.0,0.00016438,2]
[369557640,1751621443397,-151.0,0.00016438,2]
[369557641,1751621443406,-460.0,0.00016438,2]
[369557642,1751621443416,-212.237424,0.00016438,2]
[369557643,1751621443426,-460.0,0.00016438,2]
[369557644,1751621443436,-460.0,0.00016438,2]
[369557645,1751621443446,-1625.9,0.00016438,2]
[369557646,1751621443455,-460.0,0.00016438,2]
[369557647,1751621443465,-460.0,0.00016438,2]
[369557648,1751621443474,-4658.97,0.00016438,2]
[369557649,1751621443484,-409.92244053,0.00016438,2]
[369557650,1751621443494,-161.601384,0.00016438,2]
[369557651,1751621443503,-161.601384,0.00016438,2]
[369557652,1751621443512,-460.0,0.00016438,2]
[369557653,1751621443522,-161.601384,0.00016438,2]
[369557654,1751621443532,-161.601384,0.00016438,2]
[369557655,1751621443542,-161.601384,0.00016438,2]
[369557656,1751621443551,-161.601384,0.00016438,2]
[369557657,1751621443560,-161.601384,0.00016438,2]
[369557658,1751621443570,-161.601384,0.00016438,2]
[369557659,1751621443580,-161.601384,0.00016438,2]
[369557660,1751621443589,-460.0,0.00016438,2]
[369557661,1751621443599,-161.601384,0.00016438,2]
[369557662,1751621443609,-161.601384,0.00016438,2]
[369557663,1751621443618,-1397.36995443,0.00016438,2]
[369557699,1751621443992,-1864.85004557,0.00016438,2]
[369557701,1751621444002,-161.601384,0.00016438,2]
[369557703,1751621444011,-161.601384,0.00016438,2]
[369557705,1751621444020,-161.601384,0.00016438,2]
[369557707,1751621444030,-161.601384,0.00016438,2]
[369557709,1751621444044,-161.601384,0.00016438,2]
[369557711,1751621444054,-460.0,0.00016438,2]
[369557713,1751621444063,-161.601384,0.00016438,2]
[369557715,1751621444074,-161.601384,0.00016438,2]
[369557717,1751621444085,-460.0,0.00016438,2]
[369557719,1751621444094,-460.0,0.00016438,2]
[369557721,1751621444103,-391.40545672,0.00016438,2]
[369557723,1751621444115,-68.59454328,0.00016438,2]
[369557725,1751621444126,-400.87653037,0.00016438,2]
[369557727,1751621444137,-59.12346963,0.00016438,2]
[369557729,1751621444148,-460.0,0.00016438,2]
[369557731,1751621444158,-460.0,0.00016438,2]
[369557733,1751621444167,-553.79,0.00016438,2]
[369557735,1751621444176,-460.0,0.00016438,2]
[369557737,1751621444186,-396.69890299,0.00016438,2]
[369557739,1751621444198,-63.30109701,0.00016438,2]
[369557741,1751621444207,-460.0,0.00016438,2]
[369557743,1751621444217,-68.14125617,0.00016438,2]
[369557753,1751621444302,-500.0,0.00016335,2]
[369557755,1751621444311,-0.22395119,0.00016335,2]
[369557758,1751621444322,-303.81059378,0.00016335,2]
[369557995,1751621446625,-119.52484203,0.00016335,2]
[369557997,1751621446634,-180.47515797,0.00016335,2]
[369558008,1751621446736,-310.8355033,0.00016335,2]
[369558927,1751621537789,500.0,0.0001452,2]
[369558930,1751622355923,379.634474,0.00013699,2]
[369558931,1751622379675,361.98,0.00027397,120]
[369558973,1751622632658,-200.0,0.00015203,2]
[369558975,1751622632668,-300.0,0.00015204,2]
[369558977,1751622632677,-1200.0,0.00015204,2]
[369558979,1751622632687,-24900.0,0.00015205,2]
[369558981,1751622632697,-1079.84527868,0.00015253,2]
[369558983,1751622632706,-207.9777073,0.00015309,2]
[369558985,1751622632716,-10000.0,0.00015345,2]
[369558987,1751622632725,-747.996071,0.00015353,2]
[369558989,1751622632735,-495.0,0.00015408,2]
[369558991,1751622632744,-207.4,0.00015589,2]
[369558993,1751622632754,-495.0,0.00015623,2]
[369558995,1751622632764,-495.0,0.00015695,2]
[369558997,1751622632773,-495.0,0.00015711,2]
[369558999,1751622632783,-495.0,0.00015798,2]
[369559001,1751622632792,-156.4642458,0.000158,2]
[369559003,1751622632802,-500.0,0.0001589,2]
[369559005,1751622632812,-123.04324607,0.00015948,2]
[369559008,1751622632825,-371.95675393,0.00015948,2]
[369559010,1751622632835,-434.92076,0.00016109,2]
[369559012,1751622632844,-495.0,0.00016126,2]
[369559014,1751622632854,-168.0,0.00016257,2]
[369559015,1751622632863,-495.0,0.00016276,2]
[369559016,1751622632872,-160.0,0.00016332,2]
[369559017,1751622632883,-500.0,0.00016337,2]
[369559019,1751622632892,-500.0,0.00016337,2]
[369559022,1751622632902,-106.37678339,0.00016337,2]
[369559024,1751622632929,-92.09183303,0.00016337,2]
[369559025,1751622632938,-390.97994172,0.00016337,2]
[369559027,1751622632948,-12.38941288,0.00016337,2]
[369559079,1751622638884,-487.61058712,0.00016337,2]
[369559081,1751622638894,-185.15967593,0.00016337,2]
[369559083,1751622638903,-508.72707561,0.00016337,2]
[369559085,1751622638913,-290.60562188,0.00016338,2]
[369559087,1751622638924,-20424.59196626,0.00016338,2]
[369559089,1751622638933,-495.0,0.00016409,2]
[369559091,1751622638943,-1080.15,0.00016428,2]
[369559093,1751622638953,-178.092,0.00016428,2]
[369559095,1751622638962,-246.69,0.00016428,3]
[369559097,1751622638972,-246.69,0.00016428,3]
[369559099,1751622638981,-740.12,0.00016428,3]
[369559101,1751622638991,-375.09782867,0.00016437,2]
[369559103,1751622639001,-151.0,0.00016438,2]
[369559105,1751622639010,-151.0,0.00016438,2]
[369559107,1751622639020,-151.0,0.00016438,2]
[369559109,1751622639029,-151.0,0.00016438,2]
[369559111,1751622639039,-151.0,0.00016438,2]
[369559113,1751622639048,-151.0,0.00016438,2]
[369559115,1751622639059,-151.0,0.00016438,2]
[369559118,1751622639069,-151.0,0.00016438,2]
[369559120,1751622639077,-151.0,0.00016438,2]
[369559123,1751622639087,-462.72702027,0.00016438,2]
[369559125,1751622639097,-460.0,0.00016438,2]
[369559127,1751622639106,-460.0,0.00016438,2]
[369559129,1751622639115,-460.0,0.00016438,2]
[369559131,1751622639125,-460.0,0.00016438,2]
[369559133,1751622639135,-460.0,0.00016438,2]
[369559135,1751622639145,-460.0,0.00016438,2]
[369559137,1751622639155,-460.0,0.00016438,2]
[369559139,1751622639165,-460.0,0.00016438,2]
[369559141,1751622639176,-151.0,0.00016438,2]
[369559143,1751622639185,-460.45559351,0.00016438,2]
[369559145,1751622639198,-460.0,0.00016438,2]
[369559147,1751622639208,-464.51999509,0.00016438,2]
[369559149,1751622639218,-460.0,0.00016438,2]
[369559151,1751622639228,-259.40644674,0.00016438,2]
[369559153,1751622639239,-151.0,0.00016438,2]
[369559155,1751622639249,-294.777178,0.00016438,2]
[369559158,1751622639259,-460.0,0.00016438,2]
[369559160,1751622639268,-460.0,0.00016438,2]
[369559162,1751622639278,-460.0,0.00016438,2]
[369559164,1751622639288,-500.0,0.00016438,2]
[369559166,1751622639299,-500.0,0.00016438,2]
[369559168,1751622639309,-358.4003702,0.00016438,2]
[369559170,1751622639318,-460.0,0.00016438,2]
[369559172,1751622639327,-460.0,0.00016438,2]
[369559174,1751622639336,-272.44639769,0.00016438,2]
[369559176,1751622639346,-460.0,0.00016438,2]
[369559178,1751622639356,-279.865855,0.00016438,2]
[369559180,1751622639365,-279.865855,0.00016438,2]
[369559182,1751622639374,-279.865855,0.00016438,2]
[369559184,1751622639384,-279.865855,0.00016438,2]
[369559186,1751622639394,-279.865855,0.00016438,2]
[369559188,1751622639403,-279.865855,0.00016438,2]
[369559190,1751622639413,-279.865855,0.00016438,2]
[369559192,1751622639423,-279.865855,0.00016438,2]
[369559194,1751622639432,-279.865855,0.00016438,2]
[369559196,1751622639441,-279.865855,0.00016438,2]
[369559198,1751622639450,-279.865855,0.00016438,2]
[369559200,1751622639459,-279.865855,0.00016438,2]
[369559202,1751622639469,-279.865855,0.00016438,2]
[369559204,1751622639479,-279.865855,0.00016438,2]
[369559206,1751622639488,-279.865855,0.00016438,2]
[369559208,1751622639498,-279.865855,0.00016438,2]
[369559210,1751622639507,-279.865855,0.00016438,2]
[369559212,1751622639517,-198.2547672,0.00016438,2]
[369559215,1751622639531,-81.6110878,0.00016438,2]
[369559217,1751622639540,-279.865855,0.00016438,2]
[369559219,1751622639550,-279.865849,0.00016438,2]
[369559221,1751622639561,-151.0,0.00016438,2]
[369559223,1751622639571,-460.0,0.00016438,2]
[369559225,1751622639582,-460.0,0.00016438,2]
[369559227,1751622639592,-151.0,0.00016438,2]
[369559229,1751622639601,-209.16395,0.00016438,2]
[369559231,1751622639611,-460.0,0.00016438,2]
[369559233,1751622639622,-460.0,0.00016438,2]
[369559235,1751622639634,-438.90113427,0.00016438,2]
[369559237,1751622639647,-500.0,0.00016438,2]
[369559239,1751622639658,-494.47611232,0.00016438,2]
[369559241,1751622639667,-500.0,0.00016438,2]
[369559243,1751622639681,-151.0,0.00016438,2]
[369559245,1751622639690,-151.0,0.00016438,2]
[369559247,1751622639700,-151.0,0.00016438,2]
[369559249,1751622639711,-151.0,0.00016438,2]
[369559251,1751622639721,-151.0,0.00016438,2]
[369559253,1751622639731,-151.0,0.00016438,2]
[369559255,1751622639741,-151.0,0.00016438,2]
[369559257,1751622639750,-232.582858,0.00016438,2]
[369559260,1751622639760,-151.0,0.00016438,2]
[369559261,1751622639770,-460.0,0.00016438,2]
[369559264,1751622639779,-460.0,0.00016438,2]
[369559266,1751622639788,-460.0,0.00016438,2]
[369559268,1751622639798,-460.0,0.00016438,2]
[369559270,1751622639807,-460.0,0.00016438,2]
[369559272,1751622639817,-460.0,0.00016438,2]
[369559274,1751622639826,-460.0,0.00016438,2]
[369559276,1751622639835,-151.0,0.00016438,2]
[369559278,1751622639845,-151.0,0.00016438,2]
[369559280,1751622639855,-460.0,0.00016438,2]
[369559282,1751622639864,-460.0,0.00016438,2]
[369559284,1751622639874,-460.0,0.00016438,2]
[369559286,1751622639883,-151.0,0.00016438,2]
[369559288,1751622639893,-239.192001,0.00016438,2]
[369559290,1751622639902,-269.761555,0.00016438,2]
[369559292,1751622639912,-460.0,0.00016438,2]
[369559294,1751622639922,-151.0,0.00016438,2]
[369559296,1751622639931,-151.917537,0.00016438,2]
[369559298,1751622639941,-151.0,0.00016438,2]
[369559300,1751622639951,-151.0,0.00016438,2]
[369559302,1751622639960,-460.0,0.00016438,2]
[369559304,1751622639969,-460.0,0.00016438,2]
[369559306,1751622639979,-194.01649872,0.00016438,2]
[369559308,1751622639989,-493.63272826,0.00016438,2]
[369559310,1751622639998,-460.0,0.00016438,2]
[369559312,1751622640008,-300.0,0.00016438,2]
[369559314,1751622640018,-460.0,0.00016438,2]
[369559316,1751622640027,-460.0,0.00016438,2]
[369559318,1751622640037,-151.0,0.00016438,2]
[369559320,1751622640046,-460.0,0.00016438,2]
[369559322,1751622640055,-151.0,0.00016438,2]
[369559324,1751622640066,-151.0,0.00016438,2]
[369559326,1751622640075,-275.257206,0.00016438,2]
[369559328,1751622640083,-492.57325781,0.00016438,2]
[369559330,1751622640093,-424.98801689,0.00016438,2]
[369559332,1751622640105,-242.05520208,0.00016438,2]
[369559334,1751622640115,-460.0,0.00016438,2]
[369559336,1751622640124,-460.0,0.00016438,2]
[369559338,1751622640134,-151.0,0.00016438,2]
[369559340,1751622640144,-151.0,0.00016438,2]
[369559342,1751622640154,-151.0,0.00016438,2]
[369559344,1751622640164,-460.0,0.00016438,2]
[369559346,1751622640174,-123.47396862,0.00016438,2]
[369559350,1751622640198,-127.45936938,0.00016438,2]
[369559352,1751622640208,-513.56007685,0.00016438,2]
[369559354,1751622640218,-460.0,0.00016438,2]
[369559356,1751622640227,-337.41835056,0.00016438,2]
[369559358,1751622640238,-122.58164944,0.00016438,2]
[369559360,1751622640247,-460.0,0.00016438,2]
[369559362,1751622640257,-392.00294706,0.00016438,2]
[369559670,1751622643769,-67.99705294,0.00016438,2]
[369559672,1751622643779,-460.0,0.00016438,2]
[369559673,1751622643788,-460.0,0.00016438,2]
[369559675,1751622643798,-460.0,0.00016438,2]
[369559676,1751622643808,-460.0,0.00016438,2]
[369559678,1751622643817,-460.0,0.00016438,2]
[369559680,1751622643826,-132.28394706,0.00016438,2]
[369559682,1751622643838,-327.71605294,0.00016438,2]
[369559683,1751622643847,-154.0,0.00016438,2]
[369559685,1751622643856,-154.0,0.00016438,2]
[369559687,1751622643866,-154.0,0.00016438,2]
[369559688,1751622643875,-297.81646417,0.00016438,2]
[369559690,1751622643885,-157.0,0.00016438,2]
[369559692,1751622643895,-460.0,0.00016438,2]
[369559694,1751622643904,-157.0,0.00016438,2]
[369559695,1751622643913,-157.3311651,0.00016438,2]
[369559697,1751622643923,-460.0,0.00016438,2]
[369559699,1751622643931,-460.0,0.00016438,2]
[369559700,1751622643940,-460.0,0.00016438,2]
[369559703,1751622643950,-460.0,0.00016438,2]
[369559706,1751622643959,-460.0,0.00016438,2]
[369559708,1751622643968,-460.0,0.00016438,2]
[369559709,1751622643978,-460.0,0.00016438,2]
[369559712,1751622643987,-460.0,0.00016438,2]
[369559714,1751622643997,-151.0,0.00016438,2]
[369559715,1751622644006,-151.0,0.00016438,2]
[369559717,1751622644017,-460.0,0.00016438,2]
[369559719,1751622644027,-153.12975,0.00016438,2]
[369559721,1751622644036,-460.0,0.00016438,2]
[369559722,1751622644046,-165.886043,0.00016438,2]
[369559724,1751622644055,-165.886043,0.00016438,2]
[369559726,1751622644065,-165.886043,0.00016438,2]
[369559728,1751622644074,-165.886043,0.00016438,2]
[369559729,1751622644084,-165.886043,0.00016438,2]
[369559731,1751622644093,-165.886043,0.00016438,2]
[369559733,1751622644102,-165.886043,0.00016438,2]
[369559735,1751622644111,-165.886043,0.00016438,2]
[369559736,1751622644120,-165.886043,0.00016438,2]
[369559738,1751622644130,-460.0,0.00016438,2]
[369559740,1751622644139,-460.0,0.00016438,2]
[369559741,1751622644148,-165.886043,0.00016438,2]
[369559743,1751622644157,-165.886043,0.00016438,2]
[369559745,1751622644167,-165.886043,0.00016438,2]
[369559747,1751622644176,-460.0,0.00016438,2]
[369559748,1751622644185,-460.0,0.00016438,2]
[369559750,1751622644194,-460.0,0.00016438,2]
[369559752,1751622644206,-460.0,0.00016438,2]
[369559754,1751622644216,-460.0,0.00016438,2]
[369559756,1751622644225,-460.0,0.00016438,2]
[369559757,1751622644235,-460.0,0.00016438,2]
[369559759,1751622644245,-151.0,0.00016438,2]
[369559761,1751622644254,-151.0,0.00016438,2]
[369559763,1751622644264,-460.0,0.00016438,2]
[369559764,1751622644275,-460.0,0.00016438,2]
[369559766,1751622644284,-151.0,0.00016438,2]
[369559768,1751622644294,-151.0,0.00016438,2]
[369559769,1751622644303,-463.64439017,0.00016438,2]
[369559771,1751622644313,-460.0,0.00016438,2]
[369559773,1751622644323,-151.0,0.00016438,2]
[369559774,1751622644333,-151.0,0.00016438,2]
[369559776,1751622644343,-151.0,0.00016438,2]
[369559778,1751622644352,-151.0,0.00016438,2]
[369559780,1751622644361,-460.0,0.00016438,2]
[369559781,1751622644371,-151.0,0.00016438,2]
[369559783,1751622644380,-151.0,0.00016438,2]
[369559785,1751622644390,-278.595377,0.00016438,2]
[369559786,1751622644399,-460.0,0.00016438,2]
[369559788,1751622644409,-460.0,0.00016438,2]
[369559790,1751622644418,-151.0,0.00016438,2]
[369559791,1751622644427,-151.0,0.00016438,2]
[369559793,1751622644437,-151.0,0.00016438,2]
[369559795,1751622644447,-151.0,0.00016438,2]
[369559797,1751622644457,-151.0,0.00016438,2]
[369559799,1751622644466,-151.0,0.00016438,2]
[369559800,1751622644475,-151.0,0.00016438,2]
[369559802,1751622644484,-763.16,0.00016438,2]
[369559804,1751622644494,-460.0,0.00016438,2]
[369559805,1751622644503,-151.0,0.00016438,2]
[369559807,1751622644512,-151.0,0.00016438,2]
[369559809,1751622644522,-460.0,0.00016438,2]
[369559810,1751622644531,-268.703216,0.00016438,2]
[369559812,1751622644541,-460.0,0.00016438,2]
[369559814,1751622644551,-239.59986534,0.00016438,2]
[369559816,1751622644560,-460.0,0.00016438,2]
[369559817,1751622644569,-460.0,0.00016438,2]
[369559819,1751622644579,-511.12879012,0.00016438,2]
[369559821,1751622644593,-460.0,0.00016438,2]
[369559823,1751622644604,-460.0,0.00016438,2]
[369559825,1751622644613,-460.0,0.00016438,2]
[369559826,1751622644622,-460.0,0.00016438,2]
[369559828,1751622644632,-460.0,0.00016438,2]
[369559830,1751622644644,-151.0,0.00016438,2]
[369559831,1751622644660,-462.52217638,0.00016438,2]
[369559833,1751622644669,-500.0,0.00016438,2]
[369559835,1751622644679,-151.0,0.00016438,2]
[369559846,1751622644813,-460.0,0.00016438,2]
[369559848,1751622644823,-460.0,0.00016438,2]
[369559849,1751622644831,-541.80090933,0.00016438,2]
[369559851,1751622644841,-460.0,0.00016438,2]
[369559853,1751622644850,-500.0,0.00016438,2]
[369559855,1751622644861,-500.0,0.00016438,2]
[369559856,1751622644870,-500.0,0.00016438,2]
[369559858,1751622644879,-500.0,0.00016438,2]
[369559860,1751622644888,-500.0,0.00016438,2]
[369559862,1751622644899,-224.26,0.00016438,2]
[369559863,1751622644908,-500.0,0.00016438,2]
[369559865,1751622644918,-500.0,0.00016438,2]
[369559867,1751622644927,-500.0,0.00016438,2]
[369559869,1751622644936,-541.60539409,0.00016438,2]
[369559870,1751622644946,-460.0,0.00016438,2]
[369559872,1751622644956,-460.0,0.00016438,2]
[369559874,1751622644965,-500.0,0.00016438,2]
[369559876,1751622644977,-500.0,0.00016438,2]
[369559878,1751622644987,-460.0,0.00016438,2]
[369559879,1751622644998,-500.0,0.00016438,2]
[369559881,1751622645008,-500.0,0.00016438,2]
[369559883,1751622645017,-500.0,0.00016438,2]
[369559885,1751622645027,-460.0,0.00016438,2]
[369559886,1751622645036,-515.27,0.00016438,2]
[369559888,1751622645045,-194.32346477,0.00016438,2]
[369559890,1751622645054,-460.0,0.00016438,2]